{"text_format":"1","workbook":"xlsx","n_sheets":4,"sheets":["Explication","Feuille perso","Carrière-Compétence","Équipement-Titre"],"not_rendered":{"charts":0,"images":0,"macros":1,"external_links":0,"defined_names":19,"comments":0,"pivot_tables":0},"unopened":[],"bounds":{"document_bytes":16777216,"sheet_cells":100000,"rows_first":2000,"rows_last":500,"rows_between":2000,"halvings":0,"cell_chars":16384,"cell_head_chars":4096},"cells_cut":0,"cells_raw":0,"read":"whole","date_system":"1900"}

{"sheet":"Explication","index":0,"n_rows":24,"n_cols":2,"rows_kept":24,"cut":false,"hidden":false,"merged":[]}
[null,"Tout ce qui est en blanc ne peut pas être modifié"]
[]
[null,"Feuille Perso"]
[null,"= Ce que vous avez sur votre feuille"]
[null,"= Qualité de votre équipement"]
[null,"= Inscrivez \"oui\" pour dire que c'est celui que vous avez équipé"]
[null,"= Tout bonus qui modifie le chiffre de base"]
[null,"= Tout bonus qui modifie le chiffre de base en %. Exemple si bonus de 5% inscrire 105%"]
[null,"= Juste le chiffre sans le %. Exemple si +25% critique juste inscrire 25"]
[null,"= Inscriver le bonus de protection innée ou de qualité d'équipement et en bas de la colonne faite le total"]
[]
[null,"Carrière-Compétence"]
[null,"= Inscrire le nombre de point mis dans cette carrière"]
[null,"= Inscrire le terme donné par le Maître de jeu"]
[null,"= Compétence affecté par l'encombrement d'armure"]
[null,"= Point de compétence dépensé par vous"]
[null,"= Point de compétence bonus donné par une carrière"]
[null,"= Point de compétence bonus donné par une carrière pour toute la catégorie"]
[null,"=Compétence aquise suite à un événement"]
[null,"La colonne total vous donne le résultat de tout le calcul incluant votre armure"]
[]
[null,"Si la différence entre ce que la feuille calcul  et ce que vous avez placé diffère vous allez voir la différence, manque ou trop, dans ces cases"]
[]
["Ctrl+r","Remettre vierge la feuille de personnage"]

{"sheet":"Feuille perso","index":1,"n_rows":52,"n_cols":24,"rows_kept":52,"cut":false,"hidden":false,"merged":[[1,13,1,14],[2,13,2,14],[3,13,3,14],[4,13,4,14],[5,13,5,14],[51,0,51,2],[43,0,43,1],[44,0,44,1],[45,0,45,1],[46,0,46,1],[47,0,47,1],[48,0,48,1],[49,0,49,1],[50,0,50,1],[25,2,25,3],[23,2,23,3],[24,2,24,3],[0,4,0,5],[1,4,1,5],[2,4,2,5],[10,2,10,3],[20,2,20,3],[4,2,4,5],[5,2,5,5],[6,2,6,5],[7,2,7,5],[8,2,8,5],[18,0,18,1],[40,0,40,1],[41,0,41,1],[42,0,42,1],[34,0,34,1],[35,0,35,1],[36,0,36,1],[37,0,37,1],[38,0,38,1],[39,0,39,1],[26,0,26,3],[32,2,32,3],[31,2,31,3],[28,2,28,3],[29,2,29,3],[30,2,30,3],[8,0,8,1],[14,0,14,1],[15,0,15,1],[16,0,16,1],[17,0,17,1],[0,0,0,1],[1,0,1,1],[2,0,2,1],[4,0,4,1],[5,0,5,1],[6,0,6,1],[17,2,17,3],[18,2,18,3],[21,2,21,3],[22,2,22,3],[11,2,11,3],[12,2,12,3],[13,2,13,3],[14,2,14,3],[15,2,15,3],[16,2,16,3],[10,0,10,1],[11,0,11,1],[12,0,12,1],[13,0,13,1],[7,0,7,1],[37,16,37,18],[36,5,36,6],[35,10,35,11],[36,10,36,11],[35,7,35,9],[36,7,36,9],[35,5,35,6],[39,6,39,9],[40,6,40,9],[41,6,41,9],[42,6,42,9],[43,6,43,9]]}
["Expérience",null,null,null,"Physique",null,{"$f":"IF($C$7<>0,VLOOKUP($C$7,Carrière_complète,15,FALSE),0)","v":0},null,null,null,null,null,null,"Bonus %",null,"Bonus +"]
["Âge",null,null,null,"Mental",null,{"$f":"IF($C$7<>0,VLOOKUP($C$7,Carrière_complète,16,FALSE),0)","v":0},null,null,"Points de vie",null,null,{"$f":"ROUND((((G1+10)*C1)/10)*N2+P2+10,0)","v":10},1]
["Essence",null,null,null,"Réaction",null,{"$f":"IF($C$7<>0,VLOOKUP($C$7,Carrière_complète,17,FALSE),0)","v":0},null,null,"Points de magie",null,null,{"$f":"IF(G2=0,0,ROUND(G2*VLOOKUP(\"Oui\",A22:N26,14,FALSE)*N3+P3+IF(G2>=6,R3,0),0))","v":0},1,null,null,"M>=6"]
[null,null,null,null,null,null,null,null,null,"Force magique Arcane",null,null,{"$f":"ROUND(($C$1*$G$2/40)*(N4+VLOOKUP(\"oui\",$F$41:$M$44,6,FALSE))+1+P4,0)","v":1},1]
["Maison",null,null,null,null,null,"Rang",null,null,"Force magique Divine",null,null,{"$f":"ROUND(($C$1*$G$2/40)*(N5+VLOOKUP(\"oui\",$F$41:$M$44,7,FALSE))+1+P5,0)","v":1},1]
["Titre",null,null,null,null,null,"Salaire",{"$f":"IF($C$6=0,0,VLOOKUP($C$6,Titre_Complet,2,FALSE))","v":0},null,"Force magique Maudit",null,null,{"$f":"ROUND(($C$1*$G$2/40)*(N6+VLOOKUP(\"oui\",$F$41:$M$44,8,FALSE))+1+P6,0)","v":1},1]
["Carrière",null,null,null,null,null,"Or",null,null,"Champ d'action",null,null,{"$f":"IF(AND(A30=0,A31=0,A32=0,A33=0),6,6+N7+VLOOKUP(\"Oui\",A30:I33,6,FALSE))","v":6}]
["Dogme",null,null,null,null,null,null,null,null,"Vitesse de tour",null,null,{"$f":"15-G3","v":15}]
["Naissance",null,null,null,null,null,null,null,null,"Mouvement",null,null,{"$f":"IF(AND(A22=0,A23=0,A24=0,A25=0,A26=0),6+N9,6-VLOOKUP(\"Oui\",A22:N26,10,FALSE)+N9+VLOOKUP(\"Oui\",A22:N26,11,FALSE))","v":6}]
[]
["Arme",null,"Qualité",null,"Type","Port.","Bonus","Att.","Bonus","Bonus %","Dégâts","Dés","Crit.","Bon.","Mal.","Bon.","Face","Bon.","Flanc","Bon.","Dos","Bon."]
["Aucune",null,null,null,{"$f":"IF(A12=0,0,VLOOKUP(A12,Arme_Complète,9,FALSE))","v":"M / C"},{"$f":"IF(A12=0,0,IF(C12<>0,VLOOKUP(A12,Arme_Complète,2,FALSE)+VLOOKUP(C12,Qualité_Complète,4,FALSE)+G12,VLOOKUP(A12,Arme_Complète,2,FALSE)+G12))","v":1},null,{"$f":"IF(A12=0,0,IF($C12<>0,VLOOKUP($A12,Arme_Complète,3,FALSE)*VLOOKUP($C12,Qualité_Complète,3,FALSE),VLOOKUP($A12,Arme_Complète,3,FALSE)))","v":0},null,1,{"$f":"ROUND((($C$1*(H12+I12)*$G$1)/500)*J12+2,0)","v":2},{"$f":"VLOOKUP(K12,Dégat,3,TRUE)","v":"1d3"},{"$f":"IF(A12=0,0,IF(C12<>0,VLOOKUP(A12,Arme_Complète,4,FALSE)+VLOOKUP(C12,Qualité_Complète,5,FALSE)+N12,VLOOKUP(A12,Arme_Complète,4,FALSE)+N12))","v":150},null,{"$f":"IF(A12=0,0,VLOOKUP(A12,Arme_Complète,5,FALSE)-$G$2-P12)","v":9},null,{"$f":"IF(A12=0,0,IF(C12<>0,VLOOKUP(A12,Arme_Complète,6,FALSE)-VLOOKUP(C12,Qualité_Complète,6,FALSE)-R12,VLOOKUP(A12,Arme_Complète,6,FALSE)-R12))","v":8},null,{"$f":"IF(A12=0,0,IF(C12<>0,VLOOKUP(A12,Arme_Complète,7,FALSE)-VLOOKUP(C12,Qualité_Complète,7,FALSE)-T12,VLOOKUP(A12,Arme_Complète,7,FALSE)-T12))","v":7},null,{"$f":"IF(A12=0,0,IF(C12<>0,VLOOKUP(A12,Arme_Complète,8,FALSE)-VLOOKUP(C12,Qualité_Complète,8,FALSE)-V12,VLOOKUP(A12,Arme_Complète,8,FALSE)-V12))","v":6}]
[null,null,null,null,0,0,null,0,null,1,{"$f":"ROUND((($C$1*(H13+I13)*$G$1)/500)*J13+2,0)","v":2},"1d3",0,null,0,null,0,null,0,null,0]
[null,null,null,null,0,0,null,0,null,1,2,"1d3",0,null,0,null,0,null,0,null,0]
[null,null,null,null,0,0,null,0,null,1,2,"1d3",0,null,0,null,0,null,0,null,0]
[null,null,null,null,0,0,null,0,null,1,2,"1d3",0,null,0,null,0,null,0,null,0]
[null,null,null,null,0,0,null,0,null,1,2,"1d3",0,null,0,null,0,null,0,null,0]
[null,null,null,null,0,0,null,0,null,1,2,"1d3",0,null,0,null,0,null,0,null,0]
[null,null,null,null,0,0,null,0,null,1,2,"1d3",0,null,0,null,0,null,0,null,0]
[]
["Éq. ?","Armures","Qualité",null,"Perç.","Tran.","Cont.","Feu","Sort.","Enc. Mouv","Bonus","Enc. Comp.","Bonus","Magie"]
["oui","Aucune","Bonus Inné",null,null,null,null,null,null,null,null,null,null,1.5]
[null,null,null,null,{"$f":"IF(B23=0,0,VLOOKUP(B23,Armure_Complète,2,FALSE))","v":0},{"$f":"IF(B23=0,0,VLOOKUP(B23,Armure_Complète,3,FALSE))","v":0},{"$f":"IF(B23=0,0,VLOOKUP(B23,Armure_Complète,4,FALSE))","v":0},{"$f":"IF(B23=0,0,VLOOKUP(B23,Armure_Complète,5,FALSE))","v":0},{"$f":"IF(B23=0,0,VLOOKUP(B23,Armure_Complète,6,FALSE))","v":0},{"$f":"IF(B23=0,0,IF(C23<>0,VLOOKUP(B23,Armure_Complète,7,FALSE)+VLOOKUP(C23,Qualité_Complète,11,FALSE),VLOOKUP(B23,Armure_Complète,7,FALSE)))","v":0},null,{"$f":"IF(B23=0,0,IF(C23<>0,VLOOKUP(B23,Armure_Complète,8,FALSE)+VLOOKUP(C23,Qualité_Complète,12,FALSE),VLOOKUP(B23,Armure_Complète,8,FALSE)))","v":0},null,{"$f":"IF(B23=0,0,IF(C23<>0,VLOOKUP(B23,Armure_Complète,9,FALSE)+VLOOKUP(C23,Qualité_Complète,13,FALSE),VLOOKUP(B23,Armure_Complète,9,FALSE)))","v":0}]
[null,null,null,null,{"$f":"IF(B24=0,0,VLOOKUP(B24,Armure_Complète,2,FALSE))","v":0},{"$f":"IF(B24=0,0,VLOOKUP(B24,Armure_Complète,3,FALSE))","v":0},{"$f":"IF(B24=0,0,VLOOKUP(B24,Armure_Complète,4,FALSE))","v":0},{"$f":"IF(B24=0,0,VLOOKUP(B24,Armure_Complète,5,FALSE))","v":0},{"$f":"IF(B24=0,0,VLOOKUP(B24,Armure_Complète,6,FALSE))","v":0},{"$f":"IF(B24=0,0,IF(C24<>0,VLOOKUP(B24,Armure_Complète,7,FALSE)+VLOOKUP(C24,Qualité_Complète,11,FALSE),VLOOKUP(B24,Armure_Complète,7,FALSE)))","v":0},null,{"$f":"IF(B24=0,0,IF(C24<>0,VLOOKUP(B24,Armure_Complète,8,FALSE)+VLOOKUP(C24,Qualité_Complète,12,FALSE),VLOOKUP(B24,Armure_Complète,8,FALSE)))","v":0},null,{"$f":"IF(B24=0,0,IF(C24<>0,VLOOKUP(B24,Armure_Complète,9,FALSE)+VLOOKUP(C24,Qualité_Complète,13,FALSE),VLOOKUP(B24,Armure_Complète,9,FALSE)))","v":0}]
[null,null,null,null,{"$f":"IF(B25=0,0,VLOOKUP(B25,Armure_Complète,2,FALSE))","v":0},{"$f":"IF(B25=0,0,VLOOKUP(B25,Armure_Complète,3,FALSE))","v":0},{"$f":"IF(B25=0,0,VLOOKUP(B25,Armure_Complète,4,FALSE))","v":0},{"$f":"IF(B25=0,0,VLOOKUP(B25,Armure_Complète,5,FALSE))","v":0},{"$f":"IF(B25=0,0,VLOOKUP(B25,Armure_Complète,6,FALSE))","v":0},{"$f":"IF(B25=0,0,IF(C25<>0,VLOOKUP(B25,Armure_Complète,7,FALSE)+VLOOKUP(C25,Qualité_Complète,11,FALSE),VLOOKUP(B25,Armure_Complète,7,FALSE)))","v":0},null,{"$f":"IF(B25=0,0,IF(C25<>0,VLOOKUP(B25,Armure_Complète,8,FALSE)+VLOOKUP(C25,Qualité_Complète,12,FALSE),VLOOKUP(B25,Armure_Complète,8,FALSE)))","v":0},null,{"$f":"IF(B25=0,0,IF(C25<>0,VLOOKUP(B25,Armure_Complète,9,FALSE)+VLOOKUP(C25,Qualité_Complète,13,FALSE),VLOOKUP(B25,Armure_Complète,9,FALSE)))","v":0}]
[null,null,null,null,{"$f":"IF(B26=0,0,VLOOKUP(B26,Armure_Complète,2,FALSE))","v":0},{"$f":"IF(B26=0,0,VLOOKUP(B26,Armure_Complète,3,FALSE))","v":0},{"$f":"IF(B26=0,0,VLOOKUP(B26,Armure_Complète,4,FALSE))","v":0},{"$f":"IF(B26=0,0,VLOOKUP(B26,Armure_Complète,5,FALSE))","v":0},{"$f":"IF(B26=0,0,VLOOKUP(B26,Armure_Complète,6,FALSE))","v":0},{"$f":"IF(B26=0,0,IF(C26<>0,VLOOKUP(B26,Armure_Complète,7,FALSE)+VLOOKUP(C26,Qualité_Complète,11,FALSE),VLOOKUP(B26,Armure_Complète,7,FALSE)))","v":0},null,{"$f":"IF(B26=0,0,IF(C26<>0,VLOOKUP(B26,Armure_Complète,8,FALSE)+VLOOKUP(C26,Qualité_Complète,12,FALSE),VLOOKUP(B26,Armure_Complète,8,FALSE)))","v":0},null,{"$f":"IF(B26=0,0,IF(C26<>0,VLOOKUP(B26,Armure_Complète,9,FALSE)+VLOOKUP(C26,Qualité_Complète,13,FALSE),VLOOKUP(B26,Armure_Complète,9,FALSE)))","v":0}]
["Protection totale avec qualité et inné"]
[]
["Éq. ?","Bouclier","Qualité",null,"Phys.","Ch. act.","Face","Flanc","Dos"]
["oui","Aucun",null,null,{"$f":"IF(B30=0,0,IF(C30<>0,VLOOKUP(B30,Bouclier_Complet,2,FALSE)+VLOOKUP(C30,Qualité_Complète,9,FALSE),VLOOKUP(B30,Bouclier_Complet,2,FALSE)))","v":0},{"$f":"IF(B30=0,0,IF(C30<>0,VLOOKUP(B30,Bouclier_Complet,3,FALSE)-VLOOKUP(C30,Qualité_Complète,10,FALSE),VLOOKUP(B30,Bouclier_Complet,3,FALSE)))","v":0},{"$f":"IF(B30=0,0,VLOOKUP(B30,Bouclier_Complet,4,FALSE))","v":0},{"$f":"IF(B30=0,0,VLOOKUP(B30,Bouclier_Complet,5,FALSE))","v":0},{"$f":"IF(B30=0,0,VLOOKUP(B30,Bouclier_Complet,6,FALSE))","v":0}]
[null,null,null,null,{"$f":"IF(B31=0,0,IF(C31<>0,VLOOKUP(B31,Bouclier_Complet,2,FALSE)+VLOOKUP(C31,Qualité_Complète,9,FALSE),VLOOKUP(B31,Bouclier_Complet,2,FALSE)))","v":0},{"$f":"IF(B31=0,0,IF(C31<>0,VLOOKUP(B31,Bouclier_Complet,3,FALSE)-VLOOKUP(C31,Qualité_Complète,10,FALSE),VLOOKUP(B31,Bouclier_Complet,3,FALSE)))","v":0},{"$f":"IF(B31=0,0,VLOOKUP(B31,Bouclier_Complet,4,FALSE))","v":0},{"$f":"IF(B31=0,0,VLOOKUP(B31,Bouclier_Complet,5,FALSE))","v":0},{"$f":"IF(B31=0,0,VLOOKUP(B31,Bouclier_Complet,6,FALSE))","v":0}]
[null,null,null,null,{"$f":"IF(B32=0,0,IF(C32<>0,VLOOKUP(B32,Bouclier_Complet,2,FALSE)+VLOOKUP(C32,Qualité_Complète,9,FALSE),VLOOKUP(B32,Bouclier_Complet,2,FALSE)))","v":0},{"$f":"IF(B32=0,0,IF(C32<>0,VLOOKUP(B32,Bouclier_Complet,3,FALSE)-VLOOKUP(C32,Qualité_Complète,10,FALSE),VLOOKUP(B32,Bouclier_Complet,3,FALSE)))","v":0},{"$f":"IF(B32=0,0,VLOOKUP(B32,Bouclier_Complet,4,FALSE))","v":0},{"$f":"IF(B32=0,0,VLOOKUP(B32,Bouclier_Complet,5,FALSE))","v":0},{"$f":"IF(B32=0,0,VLOOKUP(B32,Bouclier_Complet,6,FALSE))","v":0}]
[null,null,null,null,{"$f":"IF(B33=0,0,IF(C33<>0,VLOOKUP(B33,Bouclier_Complet,2,FALSE)+VLOOKUP(C33,Qualité_Complète,9,FALSE),VLOOKUP(B33,Bouclier_Complet,2,FALSE)))","v":0},{"$f":"IF(B33=0,0,IF(C33<>0,VLOOKUP(B33,Bouclier_Complet,3,FALSE)-VLOOKUP(C33,Qualité_Complète,10,FALSE),VLOOKUP(B33,Bouclier_Complet,3,FALSE)))","v":0},{"$f":"IF(B33=0,0,VLOOKUP(B33,Bouclier_Complet,4,FALSE))","v":0},{"$f":"IF(B33=0,0,VLOOKUP(B33,Bouclier_Complet,5,FALSE))","v":0},{"$f":"IF(B33=0,0,VLOOKUP(B33,Bouclier_Complet,6,FALSE))","v":0}]
[]
["Influence",null,"Points","Total"]
["Aravas",null,null,{"$f":"C36*3","v":0},null,"Monture",null,"Armure",null,null,"Qualité",null,"PV","Bonus","P","M","R","Mouv","Bonus","Perç.","Tran.","Cont.","Feu","Sort."]
["Arcadis",null,null,{"$f":"C37*5","v":0},null,null,null,null,null,null,null,null,{"$f":"IF($F$37=0,0,VLOOKUP($F$37,Monture_Complet,2,FALSE)*N37)","v":0},1,{"$f":"IF($F$37=0,0,VLOOKUP($F$37,Monture_Complet,3,FALSE))","v":0},{"$f":"IF($F$37=0,0,VLOOKUP($F$37,Monture_Complet,4,FALSE))","v":0},{"$f":"IF($F$37=0,0,VLOOKUP($F$37,Monture_Complet,5,FALSE))","v":0},{"$f":"IF($F$37=0,0,VLOOKUP($F$37,Monture_Complet,6,FALSE)+S37)","v":0},null,{"$f":"IF($H$37=0,0,VLOOKUP($H$37,Carapaçons_Bardes_Complet,2,FALSE))","v":0},{"$f":"IF($H$37=0,0,VLOOKUP($H$37,Carapaçons_Bardes_Complet,3,FALSE))","v":0},{"$f":"IF($H$37=0,0,VLOOKUP($H$37,Carapaçons_Bardes_Complet,4,FALSE))","v":0},{"$f":"IF($H$37=0,0,VLOOKUP($H$37,Carapaçons_Bardes_Complet,5,FALSE))","v":0},{"$f":"IF($H$37=0,0,VLOOKUP($H$37,Carapaçons_Bardes_Complet,6,FALSE))","v":0}]
["Berrouve",null,null,{"$f":"C38*6","v":0},null,null,null,null,null,null,null,null,null,null,null,null,"Total"]
["Cercle des loups",null,null,{"$f":"C39*3","v":0}]
["Clergé",null,null,{"$f":"C40*5","v":0},null,"Éq.?","Grimoire",null,null,null,"Aucun","Sacré","Maudit"]
["Confrérie",null,null,{"$f":"C41*4","v":0},null,"oui","Aucun"]
["Duloir",null,null,{"$f":"C42*5","v":0},null,null,null,null,null,null,{"$f":"IF(G42=0,0,VLOOKUP(G42,Grimoire_Complet,2,FALSE))","v":0},{"$f":"IF(G42=0,0,VLOOKUP(G42,Grimoire_Complet,3,FALSE))","v":0},{"$f":"IF(G42=0,0,VLOOKUP(G42,Grimoire_Complet,4,FALSE))","v":0}]
["Guilde des collectionneurs",null,null,{"$f":"C43*2","v":0},null,null,null,null,null,null,{"$f":"IF(G43=0,0,VLOOKUP(G43,Grimoire_Complet,2,FALSE))","v":0},{"$f":"IF(G43=0,0,VLOOKUP(G43,Grimoire_Complet,3,FALSE))","v":0},{"$f":"IF(G43=0,0,VLOOKUP(G43,Grimoire_Complet,4,FALSE))","v":0}]
["Harlog",null,null,{"$f":"C44*2","v":0},null,null,null,null,null,null,{"$f":"IF(G44=0,0,VLOOKUP(G44,Grimoire_Complet,2,FALSE))","v":0},{"$f":"IF(G44=0,0,VLOOKUP(G44,Grimoire_Complet,3,FALSE))","v":0},{"$f":"IF(G44=0,0,VLOOKUP(G44,Grimoire_Complet,4,FALSE))","v":0}]
["Komeidai",null,null,{"$f":"C45*2","v":0}]
["Meraltor",null,null,{"$f":"C46*8","v":0}]
["Mortuterra",null,null,{"$f":"C47*1","v":0}]
["Savie",null,null,{"$f":"C48*3","v":0}]
["Tiar",null,null,{"$f":"C49*1","v":0}]
[]
[]
["Total",null,null,{"$f":"SUM(D36:D51)","v":0}]

{"sheet":"Carrière-Compétence","index":2,"n_rows":194,"n_cols":49,"rows_kept":194,"cut":false,"hidden":false,"merged":[]}
["Page","Nom","# de pex","Password",null,null,"Bonus Catégorie",null,null,null,null,"Bonus Catégorie",null,null,null,null,"Bonus Catégorie",null,null,null,null,"Bonus Catégorie",null,null,null,null,"Bonus Catégorie",null,null,null,null,null,"Nom","Manuelle","Habileté","Sens","Sociale","Connaissance","Choix",null,"Manuelle","Habileté","Sens","Sociale","Connaissance","Choix","P","M","R"]
[null,null,null,null,"Âge",{"$f":"'Feuille perso'!C2","v":0},"Manuelle","Point","Bonus","Malus","Total","Habileté","Point","Bonus","Malus","Total","Sens","Point","Bonus","Malus","Total","Sociale","Point","Bonus","Malus","Total","Connaissance","Point","Bonus","Malus","Total"]
[1,"Brute",null,null,null,null,"Alcool",null,null,null,{"$f":"H3+I3+J3+$I$1","v":0},"Acrobatie",null,null,{"$f":"IF(AND('Feuille perso'!$B$22=0,'Feuille perso'!$B$23=0,'Feuille perso'!$B$24=0,'Feuille perso'!$B$25=0,'Feuille perso'!$B$26=0),0,VLOOKUP(\"Oui\",'Feuille perso'!$A$22:$N$26,12,FALSE)+VLOOKUP(\"Oui\",'Feuille perso'!$A$22:$N$26,13,FALSE))","v":0},{"$f":"M3+N3+O3+$N$1","v":0},"Analyse",null,null,null,{"$f":"R3+S3+T3+$S$1","v":0},"Baratin",null,null,null,{"$f":"W3+X3+Y3+$X$1","v":0},"Ancien culte",null,null,null,{"$f":"AB3+AC3+AD3+$AC$1","v":0},null,"Brute",1,1,null,null,null,1,null,{"$f":"AH3*$C3","v":0},{"$f":"AI3*$C3","v":0},0,0,0,0,7,2,6]
[2,{"$f":"IF(AND(C3>5,D4=\"\"),AG4,0)","v":0},null,null,null,null,"Artisanat",null,null,null,{"$f":"H4+I4+J4+$I$1","v":0},"Camouflage nature",null,null,{"$f":"IF(AND('Feuille perso'!$B$22=0,'Feuille perso'!$B$23=0,'Feuille perso'!$B$24=0,'Feuille perso'!$B$25=0,'Feuille perso'!$B$26=0),0,VLOOKUP(\"Oui\",'Feuille perso'!$A$22:$N$26,12,FALSE)+VLOOKUP(\"Oui\",'Feuille perso'!$A$22:$N$26,13,FALSE))","v":0},{"$f":"M4+N4+O4+$N$1","v":0},"Concentration",null,null,{"$f":"IF(AND('Feuille perso'!$B$22=0,'Feuille perso'!$B$23=0,'Feuille perso'!$B$24=0,'Feuille perso'!$B$25=0,'Feuille perso'!$B$26=0),0,VLOOKUP(\"Oui\",'Feuille perso'!$A$22:$N$26,12,FALSE)+VLOOKUP(\"Oui\",'Feuille perso'!$A$22:$N$26,13,FALSE))","v":0},{"$f":"R4+S4+T4+$S$1","v":0},"Corruption",null,null,null,{"$f":"W4+X4+Y4+$X$1","v":0},"Astronomie",null,null,null,{"$f":"AB4+AC4+AD4+$AC$1","v":0},null,null,null,null,null,null,null,null,null,{"$f":"AH4*$C4","v":0},{"$f":"AI4*$C4","v":0},{"$f":"AJ4*$C4","v":0},{"$f":"AK4*$C4","v":0},{"$f":"AL4*$C4","v":0},{"$f":"AM4*$C4","v":0}]
[3,{"$f":"IF(AND(C4>5,D5=\"\",B4<>0),AG5,0)","v":0},null,null,"Manuel",{"$f":"AO156","v":0},"Chapenterie",null,null,null,0,"Camouflage urbain",null,null,{"$f":"IF(AND('Feuille perso'!$B$22=0,'Feuille perso'!$B$23=0,'Feuille perso'!$B$24=0,'Feuille perso'!$B$25=0,'Feuille perso'!$B$26=0),0,VLOOKUP(\"Oui\",'Feuille perso'!$A$22:$N$26,12,FALSE)+VLOOKUP(\"Oui\",'Feuille perso'!$A$22:$N$26,13,FALSE))","v":0},0,"Cuisine",null,null,null,0,"Éloquence",null,null,null,0,"Bibliothèques",null,null,null,0,null,null,null,null,null,null,null,null,null,0,0,0,0,0,0]
[4,"Milicien",null,null,"Habileté",{"$f":"AP156","v":0},"Chasse et pêche",null,null,{"$f":"IF(AND('Feuille perso'!$B$22=0,'Feuille perso'!$B$23=0,'Feuille perso'!$B$24=0,'Feuille perso'!$B$25=0,'Feuille perso'!$B$26=0),0,VLOOKUP(\"Oui\",'Feuille perso'!$A$22:$N$26,12,FALSE)+VLOOKUP(\"Oui\",'Feuille perso'!$A$22:$N$26,13,FALSE))","v":0},0,"Crochetage",null,null,null,0,"Détection",null,null,null,0,"Empathie",null,null,null,0,"Créatures",null,null,null,0,null,"Milicien",1,null,null,1,null,1,null,0,0,0,0,0,0,7,3,5]
[5,{"$f":"IF(AND(C6>5,D7=\"\"),AG7,0)","v":0},null,null,"Sens",{"$f":"AQ156","v":0},"Conduite",null,null,null,0,"Déguisements",null,null,null,0,"Dressage",null,null,null,0,"Faux papiers",null,null,null,0,"Géographie",null,null,null,0,null,null,null,null,null,null,null,null,null,0,0,0,0,0,0]
[6,{"$f":"IF(AND(C7>5,D8=\"\",B7<>0),AG8,0)","v":0},null,null,"Social",{"$f":"AR156","v":0},"Cordes",null,null,null,0,"Démolition",null,null,null,0,"Écoute",null,null,null,0,"Hypnotisme",null,null,null,0,"Histoire",null,null,null,0,null,null,null,null,null,null,null,null,null,0,0,0,0,0,0]
[7,"Volontaire",null,null,"Connaissance",{"$f":"AS156","v":0},"Course",null,null,{"$f":"IF(AND('Feuille perso'!$B$22=0,'Feuille perso'!$B$23=0,'Feuille perso'!$B$24=0,'Feuille perso'!$B$25=0,'Feuille perso'!$B$26=0),0,VLOOKUP(\"Oui\",'Feuille perso'!$A$22:$N$26,12,FALSE)+VLOOKUP(\"Oui\",'Feuille perso'!$A$22:$N$26,13,FALSE))","v":0},0,"Discrétion nature",null,null,{"$f":"IF(AND('Feuille perso'!$B$22=0,'Feuille perso'!$B$23=0,'Feuille perso'!$B$24=0,'Feuille perso'!$B$25=0,'Feuille perso'!$B$26=0),0,VLOOKUP(\"Oui\",'Feuille perso'!$A$22:$N$26,12,FALSE)+VLOOKUP(\"Oui\",'Feuille perso'!$A$22:$N$26,13,FALSE))","v":0},0,"Évaluation",null,null,null,0,"Intimidation",null,null,null,0,"Identification",null,null,null,0,null,"Volontaire",1,null,null,null,1,1,null,0,0,0,0,0,0,7,4,4]
[8,{"$f":"IF(AND(C9>5,D10=\"\"),AG13,0)","v":0},null,null,"Choix",{"$f":"IF(F2<50,F2,50)+AT156","v":0},"Équilibre",null,null,{"$f":"IF(AND('Feuille perso'!$B$22=0,'Feuille perso'!$B$23=0,'Feuille perso'!$B$24=0,'Feuille perso'!$B$25=0,'Feuille perso'!$B$26=0),0,VLOOKUP(\"Oui\",'Feuille perso'!$A$22:$N$26,12,FALSE)+VLOOKUP(\"Oui\",'Feuille perso'!$A$22:$N$26,13,FALSE))","v":0},0,"Discrétion urbaine",null,null,{"$f":"IF(AND('Feuille perso'!$B$22=0,'Feuille perso'!$B$23=0,'Feuille perso'!$B$24=0,'Feuille perso'!$B$25=0,'Feuille perso'!$B$26=0),0,VLOOKUP(\"Oui\",'Feuille perso'!$A$22:$N$26,12,FALSE)+VLOOKUP(\"Oui\",'Feuille perso'!$A$22:$N$26,13,FALSE))","v":0},0,"Lecture labiale",null,null,null,0,"Jargon secret",null,null,null,0,"Maisons",null,null,null,0,null,null,null,null,null,null,null,null,null,0,0,0,0,0,0]
[9,{"$f":"IF(AND(C10>5,D11=\"\",B10<>0),AG14,0)","v":0},null,null,null,null,"Équitation",null,null,null,0,"Dissimulation",null,null,null,0,"Météorologie",null,null,null,0,"Jeu",null,null,null,0,"Nature",null,null,null,0,null,null,null,null,null,null,null,null,null,0,0,0,0,0,0]
[10,"Écuyer",null,null,"Total reçu",{"$f":"SUM(F5:F10)+F21","v":0},"Escalade",null,null,{"$f":"IF(AND('Feuille perso'!$B$22=0,'Feuille perso'!$B$23=0,'Feuille perso'!$B$24=0,'Feuille perso'!$B$25=0,'Feuille perso'!$B$26=0),0,VLOOKUP(\"Oui\",'Feuille perso'!$A$22:$N$26,12,FALSE)+VLOOKUP(\"Oui\",'Feuille perso'!$A$22:$N$26,13,FALSE))","v":0},0,"Médecine",null,null,null,0,"Observation",null,null,null,0,"Leadership",null,null,null,0,"Occultisme",null,null,null,0,null,"Écuyer",1,1,null,1,null,1,null,0,0,0,0,0,0,7,5,3]
[11,{"$f":"IF(AND(C12>5,D13=\"\"),AG16,0)","v":0},null,null,"Total dépensé",{"$f":"SUM(H21:AB21)","v":0},"Lutte",null,null,{"$f":"IF(AND('Feuille perso'!$B$22=0,'Feuille perso'!$B$23=0,'Feuille perso'!$B$24=0,'Feuille perso'!$B$25=0,'Feuille perso'!$B$26=0),0,VLOOKUP(\"Oui\",'Feuille perso'!$A$22:$N$26,12,FALSE)+VLOOKUP(\"Oui\",'Feuille perso'!$A$22:$N$26,13,FALSE))","v":0},0,"Pièges",null,null,null,0,"Odorat",null,null,null,0,"Marchandage",null,null,null,0,"Politique",null,null,null,0,null,null,null,null,null,null,null,null,null,0,0,0,0,0,0]
[12,{"$f":"IF(AND(C13>5,D14=\"\",B13<>0),AG17,0)","v":0},null,null,"Reste",{"$f":"IF(F12-F13<0,0,F12-F13)","v":0},"Métallurgie",null,null,null,0,"Précision",null,null,null,0,"Orientation",null,null,null,0,"Performance",null,null,null,0,"Rituel du Trépas",null,null,null,0,null,null,null,null,null,null,null,null,null,0,0,0,0,0,0]
[13,"Mercenaire",null,null,"Trop",{"$f":"IF(F13-F12<0,0,F13-F12)","v":0},"Natation",null,null,{"$f":"IF(AND('Feuille perso'!$B$22=0,'Feuille perso'!$B$23=0,'Feuille perso'!$B$24=0,'Feuille perso'!$B$25=0,'Feuille perso'!$B$26=0),0,VLOOKUP(\"Oui\",'Feuille perso'!$A$22:$N$26,12,FALSE)+VLOOKUP(\"Oui\",'Feuille perso'!$A$22:$N$26,13,FALSE))","v":0},0,"Technologie",null,null,null,0,"Perception",null,null,null,0,"Rumeurs",null,null,null,0,"Sortilèges",null,null,null,0,null,"Mercenaire",1,1,null,null,null,1,null,0,0,0,0,0,0,6,3,6]
[14,{"$f":"IF(AND(C15>5,D16=\"\"),AG19,0)","v":0},null,null,null,null,"Navigation",null,null,null,0,"Thanatologie",null,null,null,0,"Pistage",null,null,null,0,"Séduction",null,null,null,0,"Tactiques",null,null,null,0,null,null,null,null,null,null,null,null,null,0,0,0,0,0,0]
[15,{"$f":"IF(AND(C16>5,D17=\"\",B16<>0),AG20,0)","v":0},null,null,"# de pex dépensé",{"$f":"AT156","v":0},"Torture",null,null,null,0,"Vol à la tire",null,null,{"$f":"IF(AND('Feuille perso'!$B$22=0,'Feuille perso'!$B$23=0,'Feuille perso'!$B$24=0,'Feuille perso'!$B$25=0,'Feuille perso'!$B$26=0),0,VLOOKUP(\"Oui\",'Feuille perso'!$A$22:$N$26,12,FALSE)+VLOOKUP(\"Oui\",'Feuille perso'!$A$22:$N$26,13,FALSE))","v":0},0,"Recherche",null,null,null,0,"Ventriloquie",null,null,null,0,"Théologie",null,null,null,0,null,null,null,null,null,null,null,null,null,0,0,0,0,0,0]
[16,"Archer",null,null,"# de pex reçu",{"$f":"'Feuille perso'!C1","v":0},"Dragonnerie",null,null,null,0,"Tatouage Tribal",null,null,null,0,"P.E.S.",null,null,null,0,"Ignisalta",null,null,null,0,"Rituel des étoiles",null,null,null,0,null,"Archer",null,1,1,null,null,1,null,0,0,0,0,0,0,6,4,5]
[17,{"$f":"IF(AND(C18>5,D19=\"\"),AG22,0)","v":0},null,null,"Reste",{"$f":"IF(F18-F17<0,0,F18-F17)","v":0},null,null,null,null,0,null,null,null,null,0,null,null,null,null,0,null,null,null,null,0,null,null,null,null,0,null,null,null,null,null,null,null,null,null,0,0,0,0,0,0]
[18,{"$f":"IF(AND(C19>5,D20=\"\",B19<>0),AG23,0)","v":0},null,null,"Trop",{"$f":"IF(F17-F18<0,0,F17-F18)","v":0},null,null,null,null,null,null,null,null,null,null,null,null,null,null,null,null,null,null,null,null,null,null,null,null,null,null,null,null,null,null,null,null,null,null,0,0,0,0,0,0]
[19,"Matelot",null,null,"Bonus",null,"Total",{"$f":"SUM(H3:H19)","v":0},null,null,null,null,{"$f":"SUM(M3:M19)","v":0},null,null,null,null,{"$f":"SUM(R3:R19)","v":0},null,null,null,null,{"$f":"SUM(W3:W19)","v":0},null,null,null,null,{"$f":"SUM(AB3:AB19)","v":0},null,null,null,null,"Matelot",1,1,null,1,null,1,null,0,0,0,0,0,0,6,5,4]
[20,{"$f":"IF(AND(C21>5,D22=\"\"),AG25,0)","v":0},null,null,null,null,"Manque",{"$f":"IF(H21<F5,F5-H21,\"ok\")","v":"ok"},null,null,null,"Manque",{"$f":"IF(M21<F6,F6-M21,\"ok\")","v":"ok"},null,null,null,"Manque",{"$f":"IF(R21<F7,F7-R21,\"ok\")","v":"ok"},null,null,null,"Manque",{"$f":"IF(W21<F8,F8-W21,\"ok\")","v":"ok"},null,null,null,"Manque",{"$f":"IF(AB21<F9,F9-AB21,\"ok\")","v":"ok"},null,null,null,null,null,null,null,null,null,null,null,null,0,0,0,0,0,0]
[21,{"$f":"IF(AND(C22>5,D23=\"\",B22<>0),AG26,0)","v":0},null,null,null,null,null,null,null,null,null,null,null,null,null,null,null,null,null,null,null,null,null,null,null,null,null,null,null,null,null,null,null,null,null,null,null,null,null,null,0,0,0,0,0,0]
[22,"Artisan",null,null,null,null,null,null,null,null,null,null,null,null,null,null,null,null,null,null,null,null,null,null,null,null,null,null,null,null,null,null,"Artisan",1,1,null,1,null,1,null,0,0,0,0,0,0,6,6,3]
[23,{"$f":"IF(AND(C24>5,D25=\"\"),AG28,0)","v":0},null,null,null,null,null,null,null,null,null,null,null,null,null,null,null,null,null,null,null,null,null,null,null,null,null,null,null,null,null,null,null,null,null,null,null,null,null,null,0,0,0,0,0,0]
[24,{"$f":"IF(AND(C25>5,D26=\"\",B25<>0),AG29,0)","v":0},null,null,null,null,null,null,null,null,null,null,null,null,null,null,null,null,null,null,null,null,null,null,null,null,null,null,null,null,null,null,null,null,null,null,null,null,null,null,0,0,0,0,0,0]
[25,"Voleur",null,null,null,null,null,null,null,null,null,null,null,null,null,null,null,null,null,null,null,null,null,null,null,null,null,null,null,null,null,null,"Voleur",null,1,1,null,null,1,null,0,0,0,0,0,0,5,3,7]
[26,{"$f":"IF(AND(C27>5,D28=\"\"),AG31,0)","v":0},null,null,null,null,null,null,null,null,null,null,null,null,null,null,null,null,null,null,null,null,null,null,null,null,null,null,null,null,null,null,null,null,null,null,null,null,null,null,0,0,0,0,0,0]
[27,{"$f":"IF(AND(C28>5,D29=\"\",B28<>0),AG32,0)","v":0},null,null,null,null,null,null,null,null,null,null,null,null,null,null,null,null,null,null,null,null,null,null,null,null,null,null,null,null,null,null,null,null,null,null,null,null,null,null,0,0,0,0,0,0]
[28,"Voyageur",null,null,null,null,null,null,null,null,null,null,null,null,null,null,null,null,null,null,null,null,null,null,null,null,null,null,null,null,null,null,"Voyageur",1,null,1,null,1,1,null,0,0,0,0,0,0,5,4,6]
[29,{"$f":"IF(AND(C30>5,D31=\"\"),AG34,0)","v":0},null,null,null,null,null,null,null,null,null,null,null,null,null,null,null,null,null,null,null,null,null,null,null,null,null,null,null,null,null,null,null,null,null,null,null,null,null,null,0,0,0,0,0,0]
[30,{"$f":"IF(AND(C31>5,D32=\"\",B31<>0),AG35,0)","v":0},null,null,null,null,null,null,null,null,null,null,null,null,null,null,null,null,null,null,null,null,null,null,null,null,null,null,null,null,null,null,null,null,null,null,null,null,null,null,0,0,0,0,0,0]
[31,"Marchand",null,null,null,null,null,null,null,null,null,null,null,null,null,null,null,null,null,null,null,null,null,null,null,null,null,null,null,null,null,null,"Marchand",1,null,1,1,null,1,null,0,0,0,0,0,0,5,5,5]
[32,{"$f":"IF(AND(C33>5,D34=\"\"),AG37,0)","v":0},null,null,null,null,null,null,null,null,null,null,null,null,null,null,null,null,null,null,null,null,null,null,null,null,null,null,null,null,null,null,null,null,null,null,null,null,null,null,0,0,0,0,0,0]
[33,{"$f":"IF(AND(C34>5,D35=\"\",B34<>0),AG38,0)","v":0},null,null,null,null,null,null,null,null,null,null,null,null,null,null,null,null,null,null,null,null,null,null,null,null,null,null,null,null,null,null,null,null,null,null,null,null,null,null,0,0,0,0,0,0]
[34,"Forestier",null,null,null,null,null,null,null,null,null,null,null,null,null,null,null,null,null,null,null,null,null,null,null,null,null,null,null,null,null,null,"Forestier",1,null,1,null,1,1,null,0,0,0,0,0,0,5,6,4]
[35,{"$f":"IF(AND(C36>5,D37=\"\"),AG40,0)","v":0},null,null,null,null,null,null,null,null,null,null,null,null,null,null,null,null,null,null,null,null,null,null,null,null,null,null,null,null,null,null,null,null,null,null,null,null,null,null,0,0,0,0,0,0]
[36,{"$f":"IF(AND(C37>5,D38=\"\",B37<>0),AG41,0)","v":0},null,null,null,null,null,null,null,null,null,null,null,null,null,null,null,null,null,null,null,null,null,null,null,null,null,null,null,null,null,null,null,null,null,null,null,null,null,null,0,0,0,0,0,0]
[37,"Clerc",null,null,null,null,null,null,null,null,null,null,null,null,null,null,null,null,null,null,null,null,null,null,null,null,null,null,null,null,null,null,"Clerc",null,null,null,1,1,1,null,0,0,0,0,0,0,5,7,3]
[38,{"$f":"IF(AND(C39>5,D40=\"\"),AG43,0)","v":0},null,null,null,null,null,null,null,null,null,null,null,null,null,null,null,null,null,null,null,null,null,null,null,null,null,null,null,null,null,null,null,null,null,null,null,null,null,null,0,0,0,0,0,0]
[39,{"$f":"IF(AND(C40>5,D41=\"\",B40<>0),AG44,0)","v":0},null,null,null,null,null,null,null,null,null,null,null,null,null,null,null,null,null,null,null,null,null,null,null,null,null,null,null,null,null,null,null,null,null,null,null,null,null,null,0,0,0,0,0,0]
[40,"Moine",null,null,null,null,null,null,null,null,null,null,null,null,null,null,null,null,null,null,null,null,null,null,null,null,null,null,null,null,null,null,"Moine",null,null,1,null,1,1,null,0,0,0,0,0,0,4,4,7]
[41,{"$f":"IF(AND(C42>5,D43=\"\"),AG46,0)","v":0},null,null,null,null,null,null,null,null,null,null,null,null,null,null,null,null,null,null,null,null,null,null,null,null,null,null,null,null,null,null,null,null,null,null,null,null,null,null,0,0,0,0,0,0]
[42,{"$f":"IF(AND(C43>5,D44=\"\",B43<>0),AG47,0)","v":0},null,null,null,null,null,null,null,null,null,null,null,null,null,null,null,null,null,null,null,null,null,null,null,null,null,null,null,null,null,null,null,null,null,null,null,null,null,null,0,0,0,0,0,0]
[43,"Gitan",null,null,null,null,null,null,null,null,null,null,null,null,null,null,null,null,null,null,null,null,null,null,null,null,null,null,null,null,null,null,"Gitan",null,null,1,1,1,1,null,0,0,0,0,0,0,4,5,6]
[44,{"$f":"IF(AND(C45>5,D46=\"\"),AG49,0)","v":0},null,null,null,null,null,null,null,null,null,null,null,null,null,null,null,null,null,null,null,null,null,null,null,null,null,null,null,null,null,null,null,null,null,null,null,null,null,null,0,0,0,0,0,0]
[45,{"$f":"IF(AND(C46>5,D47=\"\",B46<>0),AG50,0)","v":0},null,null,null,null,null,null,null,null,null,null,null,null,null,null,null,null,null,null,null,null,null,null,null,null,null,null,null,null,null,null,null,null,null,null,null,null,null,null,0,0,0,0,0,0]
[46,"Traqueur",null,null,null,null,null,null,null,null,null,null,null,null,null,null,null,null,null,null,null,null,null,null,null,null,null,null,null,null,null,null,"Traqueur",null,1,1,1,null,1,null,0,0,0,0,0,0,4,6,5]
[47,{"$f":"IF(AND(C48>5,D49=\"\"),AG52,0)","v":0},null,null,null,null,null,null,null,null,null,null,null,null,null,null,null,null,null,null,null,null,null,null,null,null,null,null,null,null,null,null,null,null,null,null,null,null,null,null,0,0,0,0,0,0]
[48,{"$f":"IF(AND(C49>5,D50=\"\",B49<>0),AG53,0)","v":0},null,null,null,null,null,null,null,null,null,null,null,null,null,null,null,null,null,null,null,null,null,null,null,null,null,null,null,null,null,null,null,null,null,null,null,null,null,null,0,0,0,0,0,0]
[49,"Cultiste",null,null,null,null,null,null,null,null,null,null,null,null,null,null,null,null,null,null,null,null,null,null,null,null,null,null,null,null,null,null,"Cultiste",null,null,1,1,1,1,null,0,0,0,0,0,0,4,7,4]
[50,{"$f":"IF(AND(C51>5,D52=\"\"),AG55,0)","v":0},null,null,null,null,null,null,null,null,null,null,null,null,null,null,null,null,null,null,null,null,null,null,null,null,null,null,null,null,null,null,null,null,null,null,null,null,null,null,0,0,0,0,0,0]
[51,{"$f":"IF(AND(C52>5,D53=\"\",B52<>0),AG56,0)","v":0},null,null,null,null,null,null,null,null,null,null,null,null,null,null,null,null,null,null,null,null,null,null,null,null,null,null,null,null,null,null,null,null,null,null,null,null,null,null,0,0,0,0,0,0]
[52,"Apothicaire",null,null,null,null,null,null,null,null,null,null,null,null,null,null,null,null,null,null,null,null,null,null,null,null,null,null,null,null,null,null,"Apothicaire",null,1,null,null,1,1,null,0,0,0,0,0,0,3,6,6]
[53,{"$f":"IF(AND(C54>5,D55=\"\"),AG58,0)","v":0},null,null,null,null,null,null,null,null,null,null,null,null,null,null,null,null,null,null,null,null,null,null,null,null,null,null,null,null,null,null,null,null,null,null,null,null,null,null,0,0,0,0,0,0]
[54,{"$f":"IF(AND(C55>5,D56=\"\",B55<>0),AG59,0)","v":0},null,null,null,null,null,null,null,null,null,null,null,null,null,null,null,null,null,null,null,null,null,null,null,null,null,null,null,null,null,null,null,null,null,null,null,null,null,null,0,0,0,0,0,0]
[55,"Étudiant",null,null,null,null,null,null,null,null,null,null,null,null,null,null,null,null,null,null,null,null,null,null,null,null,null,null,null,null,null,null,"Étudiant",null,1,null,1,1,1,null,0,0,0,0,0,0,3,7,5]
[56,{"$f":"IF(AND(C57>5,D58=\"\"),AG61,0)","v":0},null,null,null,null,null,null,null,null,null,null,null,null,null,null,null,null,null,null,null,null,null,null,null,null,null,null,null,null,null,null,null,null,null,null,null,null,null,null,0,0,0,0,0,0]
[57,{"$f":"IF(AND(C58>5,D59=\"\",B58<>0),AG62,0)","v":0},null,null,null,null,null,null,null,null,null,null,null,null,null,null,null,null,null,null,null,null,null,null,null,null,null,null,null,null,null,null,null,null,null,null,null,null,null,null,0,0,0,0,0,0]
[58,"Apprenti",null,null,null,null,null,null,null,null,null,null,null,null,null,null,null,null,null,null,null,null,null,null,null,null,null,null,null,null,null,null,"Apprenti",null,null,1,null,1,1,null,0,0,0,0,0,0,2,7,6]
[59,{"$f":"IF(AND(C60>5,D61=\"\"),AG64,0)","v":0},null,null,null,null,null,null,null,null,null,null,null,null,null,null,null,null,null,null,null,null,null,null,null,null,null,null,null,null,null,null,null,null,null,null,null,null,null,null,0,0,0,0,0,0]
[60,{"$f":"IF(AND(C61>5,D62=\"\",B61<>0),AG65,0)","v":0},null,null,null,null,null,null,null,null,null,null,null,null,null,null,null,null,null,null,null,null,null,null,null,null,null,null,null,null,null,null,null,null,null,null,null,null,null,null,0,0,0,0,0,0]
[]
[61,{"$f":"IF(AND(B5<>0,C33>5,D64=\"\",C5>5),AG55,0)","v":0}]
[62,{"$f":"IF(AND(C64>5,D65=\"\",B64<>0),AG56,0)","v":0}]
[63,{"$f":"IF(AND(C3>5,B14<>0,D66=\"\",C14>5),AG57,0)","v":0}]
[64,{"$f":"IF(AND(C4>5,B15<>0,D67=\"\",C15>5),AG58,0)","v":0}]
[65,0]
[66,0]
[67,0]
[68,0]
[69,0]
[70,0]
[71,0]
[72,0]
[73,0]
[74,0]
[75,0]
[76,0]
[77,0]
[78,0]
[79,0]
[80,0]
[81,0]
[82,0]
[83,0]
[84,0]
[85,0]
[86,0]
[87,0]
[88,0]
[89,0]
[90,0]
[91,0]
[92,0]
[93,{"$f":"IF(AND(C33>5,B44<>0,D96=\"\",C44>5),AG87,0)","v":0}]
[94,0]
[95,0]
[96,0]
[97,0]
[98,0]
[99,0]
[100,0]
[101,0]
[102,0]
[103,0]
[104,0]
[105,0]
[106,0]
[107,0]
[108,0]
[109,0]
[110,0]
[111,0]
[112,0]
[113,0]
[114,0]
[115,0]
[116,0]
[117,0]
[118,0]
[119,0]
[120,0]
[]
[121]
[122]
[123]
[124]
[125]
[126]
[127]
[128]
[129]
[130]
[131]
[132]
[133]
[134]
[135]
[136]
[137]
[138]
[139]
[140]
[141]
[142]
[143]
[144]
[145]
[146]
[147]
[148]
[149]
[150]
[]
[null,null,null,null,null,null,null,null,null,null,null,null,null,null,null,null,null,null,null,null,null,null,null,null,null,null,null,null,null,null,null,null,null,null,null,null,null,null,null,null,{"$f":"SUM(AO3:AO154)","v":0},{"$f":"SUM(AP3:AP154)","v":0},0,0,0,0]
[]
[]
[]
[]
[]
[]
[]
[]
[]
[]
[]
[]
[]
[]
[]
[]
[]
[]
[]
[]
[]
[]
[]
[]
[]
[]
[]
[]
[]
[]
[]
[]
[]
[]
[]
[]
[]
[null,null,{"$f":"SUM(C3:C192)","v":0}]

{"sheet":"Équipement-Titre","index":3,"n_rows":195,"n_cols":30,"rows_kept":195,"cut":false,"hidden":true,"merged":[]}
["Titre","Or",null,"Arme","Portée","Attaque","Critique","Maladresse","Face","Flanc","Dos","Type",null,"Bouclier","Physique","Champ d'action","Face","Flanc","Dos",null,null,null,null,null,null,null,"Grimoire","Aucun","Sacré","Maudit"]
[]
["Adjudant",6,null,"Acier des anges",2,42,300,10,5,3,3,"M / P",null,"Aucun",0,0,0,0,0,null,null,null,null,null,null,null,"Arcannes noires",0.2,null,0.2]
["Amiral",50,null,"Âmes Trahies",1,25,300,9,2,2,2,"M / P",null,"Bouclier improvisé",4,-3,8,10,"-",null,null,null,null,null,null,null,"Arcannum",0.4]
["Archevêque",25,null,"Ange gardien",11,22,200,11,5,4,4,"T / P",null,"Bouclier Tour",7,-4,6,7,9,null,null,null,null,null,null,null,"Bible bénit",null,0.2]
["Cadet",2,null,"Arbalète à répétition",7,29,350,10,4,4,4,"T / P",null,"Défense de Richard",6,-3,5,6,9,null,null,null,null,null,null,null,"Bible Commune",null,0.1]
["Capitaine",25,null,"Arbalète de concours",7,16,250,10,5,5,5,"T / P",null,"Dragonien",5,-2,5,7,10,null,null,null,null,null,null,null,"Bible de l'archevêque Lorin",0.3,0.3]
["Caporal",6,null,"Arbalète de siège",8,22,300,10,5,5,5,"T / P",null,"Écu",4,-2,7,8,9,null,null,null,null,null,null,null,"Bible originale de Fedoranne",0.3,0.5]
["Cardinal",40,null,"Arbalète improvisée",5,11,200,10,7,7,6,"T / P",null,"Écu Sormand",6,-3,7,7,8,null,null,null,null,null,null,null,"Grimoire de nécromancie",null,null,0.3]
["Clerc",7,null,"Arbalète légère",6,13,250,10,7,6,6,"T / P",null,"Garde de Valiant",6,-3,4,6,8,null,null,null,null,null,null,null,"Grimoire des morts",null,null,0.4]
["Colonel",35,null,"Arbalète lourde",7,17,300,10,6,6,5,"T / P",null,"Grand bouclier",6,-4,7,8,10,null,null,null,null,null,null,null,"Grimoire Shinir",0.4,null,0.3]
["Commandant",25,null,"Arbalète militaire",6,13,250,10,7,6,6,"T / P",null,"Pavois noble",6,-3,5,8,"-",null,null,null,null,null,null,null,"Libertam Morbid",0.2,null,0.3]
["Commodore",35,null,"Arc ancien",10,19,200,11,6,5,5,"T / P",null,"Petit bouclier",3,-1,8,10,10,null,null,null,null,null,null,null,"Libras Majoris",0.3]
["Diacre",3,null,"Arc court",7,9,150,11,8,6,6,"T / P",null,"Rempart du mage",3,-1,7,9,9,null,null,null,null,null,null,null,"Lucend Virtuos",0.2,0.4]
["Évêque",15,null,"Arc des cieux",11,26,250,11,4,4,3,"T / P",null,"Rondache",5,-2,8,9,9,null,null,null,null,null,null,null,"Main de Valiant",null,0.4]
["Général",50,null,"Arc franc",8,16,200,11,6,5,4,"T / P",null,"Saint-Norec",7,-4,4,6,9,null,null,null,null,null,null,null,"Manifeste du Dualisme",null,0.2,0.2]
["Junior",1,null,"Arc long",9,12,150,11,7,5,5,"T / P",null,"Targe",5,-2,6,9,"-",null,null,null,null,null,null,null,"Manuel de l'apprenti",0.1]
["Lieutenant",12,null,"Arc Primitif",4,6,150,12,9,8,7,"T / P",null,"Valarius",4,-1,5,7,7,null,null,null,null,null,null,null,"Omega Opus",0.5,0.2,0.2]
["Lieutenant Major",14,null,"Arme du juste",1,15,150,10,5,5,5,"M / T",null,null,null,null,null,null,null,null,null,null,null,null,null,null,"Petit livre noir",null,null,0.2]
["Major",17,null,"Arquebuse",5,23,200,12,7,5,5,"T / F",null,"Armures","Perçant","Tranchant","Contondant","Feu","Sortilège","Encombrement mouvement","Encombrement compétence","Magie",null,null,null,null,"Propagande cultiste",null,null,0.1]
["Marin 1ère Classe",5,null,"Arquebuse double",5,34,200,12,6,5,5,"T / F",null,null,null,null,null,null,null,null,null,null,null,null,null,null,"Saints évangiles",null,0.3]
["Marin 2è Classe",4,null,"Aucune",1,0,150,9,8,7,6,"M / C",null,"Armure de cuir complète",null,null,25,null,25,null,null,1.2,null,null,null,null,"Secrets sombres",0.2,null,0.4]
["Marin 3è Classe",3,null,"Barmerak",1,49,250,11,5,4,3,"M / T",null,"Armure de cuir renforcée",25,null,25,null,25,1,-10,0.9,null,null,null,null,"Théorème de magie unifiée",0.1,0.1,0.1]
["Matelot",2,null,"Bâton de bois",1,7,null,12,8,8,7,"M / C",null,"Armure de fonte",25,25,null,25,null,4,-40,0.6,null,null,null,null,"Traité de magie",0.2]
["Missionnaire",4,null,"Bâton de marche",1,9,150,9,7,7,7,"M / C",null,"Armure de peau animal",25,25,null,null,null,2,-20,0.9,null,null,null,null,"Verum Solmornis",0.3,null,0.5]
["Moine",5,null,"Bâton de puissance",1,16,150,9,6,6,6,"M / C",null,"Armure de plate complète",75,50,50,25,null,4,-40,0.6]
["Prêtre",10,null,"Bola",3,5,null,12,8,7,6,"T / C",null,"Armure en écaille",25,50,25,null,null,2,-20,0.9]
["Repris de justice",0,null,"Canne de combat",2,14,150,9,6,5,4,"M / C",null,"Armure feuilletée",25,25,50,25,25,1,-10,1]
["Sergent",8,null,"Charge d'éléphant",2,21,200,10,6,5,5,"M / P",null,"Aucune",null,null,null,null,null,null,null,1.5]
["Sergent Major",10,null,"Chat à neuf queues",1,18,250,12,6,5,4,"M / C",null,"Blouse de magicien",null,null,25,null,50,1,-10,1.6]
["Servant de messe",1,null,"Cimeterre",1,10,200,11,7,6,4,"M / T",null,"Brigantine",25,25,50,null,null,null,null,1]
["Soldat 1ère Classe",5,null,"Cimeterre géant",1,15,250,11,6,5,4,"M / T",null,"Brigantine Balgarde",50,25,50,null,25,1,-10,1.3]
["Soldat 2è Classe",4,null,"Cobra",1,18,250,9,4,4,2,"M / P",null,"Caban",null,null,null,25,25,2,-20,1.3]
["Soldat 3è Classe",3,null,"Cœur de Valiant",1,27,200,10,3,3,2,"M / T",null,"Cape de voyage",null,null,null,null,25,1,-10,1.5]
[null,null,null,"Colère du Créateur",1,31,200,10,3,2,2,"M / T",null,"Cape des ombres",25,null,25,null,50,1,-10,1.6]
[0,null,0,"Coupe-gorge",1,22,250,9,3,3,2,"M / P",null,"Carapace animale",25,null,25,null,null,2,-20,0.8]
[1,null,1,"Courage Berrouve",1,24,250,11,5,4,4,"M / T",null,"Carapace Harlog (Homme)",25,25,25,25,25,4,-40,0.8]
[2,null,"1d3","Couteau de chasse",1,11,200,9,6,5,4,"M / P",null,"Carapace lourde",25,25,25,25,null,4,-40,0.6]
[3,null,"1d5","Couteau de jet",4,8,150,9,7,6,5,"T / P",null,"Cavalerie légère",50,25,25,25,null,2,-20,1]
[4,null,"2d3","Couteau de pierre",1,6,150,12,9,7,6,"M / P",null,"Cavalerie lourde",50,50,50,25,null,3,-30,0.8]
[5,null,"2d4","Couteau de poche",1,7,150,9,8,7,6,"M / P",null,"Chemise de maille royale",50,25,50,null,null,1,-10,0.9]
[6,null,"2d5","Coutelas",4,12,150,9,6,5,3,"T / P",null,"Cœur de lion",75,75,50,50,25,3,-30,0.7]
[7,null,"2d6","Cracheuse de venim",5,null,null,10,5,5,4,"T / P",null,"Cotte de maille",25,25,null,null,null,1,-10,1]
[8,null,"3d4","Cravache",1,15,200,12,7,6,5,"M / C",null,"Cuirasse",25,null,25,null,null,1,-10,1]
[9,null,"2d8","Cri des agneaux",1,28,350,12,5,3,3,"M / C",null,"Cuirasse de plate",50,50,25,25,null,2,-20,0.8]
[10,null,"3d6","Dague militaire",1,9,150,9,7,6,4,"M / P",null,"Cuirasse des magistrats",25,25,25,null,25,null,null,1.3]
[11,null,"2d10","Dague précise",4,16,200,9,5,4,3,"T / P",null,"Défense Walkyrie (Femme)",50,25,25,50,null,2,-20,0.8]
[12,null,"5d4","Dard ailé",6,16,200,10,6,5,5,"T / P",null,"Demi-armure de plate",50,50,25,25,null,3,-30,0.7]
[13,null,"2d12","Dernières mesures",1,14,200,9,5,4,3,"M / P",null,"Étoile du nord",50,25,50,null,50,null,null,1.1000000000000001]
[14,null,"4d6","Éclair noir",2,41,200,11,5,4,4,"M / T",null,"Grand Tanius",null,25,25,50,50,2,-20,1.3]
[15,null,"6d4","Épée à deux mains",1,17,150,10,6,6,5,"M / T",null,"Habit de grand froids",25,null,null,50,25,2,-20,1.2]
[16,null,"3d10","Épée barbare",1,17,150,10,6,4,4,"M / T",null,"Habit du Magus",null,null,null,25,75,1,-10,1.7]
[17,null,"5d6","Épée bâtarde",1,13,150,10,7,6,6,"M / T",null,"Harnois de conquête",50,75,25,25,25,3,-30,0.8]
[18,null,"4d8","Épée courte",1,10,150,10,6,5,4,"M / T",null,"Harnois partiel",25,50,null,25,null,3,-30,0.7]
[19,null,"3d12","Épée de bois à deux mains",1,9,null,12,8,8,7,"M / T",null,"Haubert de maille",25,25,25,null,null,3,-30,0.8]
[20,null,"8d4","Épée de bois à une main",1,7,null,12,8,8,7,"M / T",null,"Larmes de métal",50,50,50,50,25,2,-20,1]
[21,null,"6d6","Épée du conquérant",1,35,200,10,5,4,3,"M / T",null,"Manteau",null,null,null,null,25,1,-10,1.5]
[22,null,"4d10","Épée longue",1,12,150,10,5,5,4,"M / T",null,"Manteau renforcé",null,25,null,null,null,1,-10,1]
[23,null,"5d8","Espadon",1,21,150,10,6,5,5,"M / T",null,"Paletot de cuir",null,25,25,25,null,2,-20,1.4]
[24,null,"7d6","Espingole",4,22,200,12,6,6,5,"T / F",null,"Panoplie du Ninja",25,25,25,25,25,null,null,1.1000000000000001]
[25,null,"10d4","Feu de l'enfer",6,51,200,12,5,4,4,"T / F",null,"Pèlerine",null,25,25,25,null,2,-20,1.4]
[26,null,"4d12","Flamberge",1,39,250,10,5,3,3,"M / T",null,"Plastron métallique",50,25,null,null,null,3,-30,0.8]
[27,null,"6d8","Fléau double",1,14,300,12,7,5,5,"M / C",null,"Plate de combat",50,50,25,25,25,3,-30,0.8]
[28,null,"5d10","Fléau improvisé",1,9,250,12,8,7,6,"M / C",null,"Redingote",null,null,25,25,null,null,null,1.3]
[29,null,"8d6","Fléau simple",1,12,250,12,8,6,5,"M / C",null,"Reine Naha (Femme)",null,null,25,25,75,1,-10,1.9]
[30,null,"7d8","Fléau triple",1,19,300,12,6,5,4,"M / C",null,"Remayal",50,50,50,25,25,2,-20,0.9]
[31,null,"9d6","Fleuret",1,21,200,10,5,4,4,"M / T",null,"Robe d'apprenti",null,null,null,null,50,1,-10,1.5]
[32,null,"5d12","Foi du cardinal",1,30,150,10,4,4,4,"M / C",null,"Robe de feu",null,25,null,50,50,2,-20,1.8]
[33,null,"6d10","Force de la nature",1,22,150,9,6,6,6,"M / C",null,"Robe renforcée",null,25,25,25,25,2,-20,1.5]
[34,null,"10d6","Force de Sorgar",1,33,250,10,4,3,3,"M / T",null,"Roi Damacleus (Homme)",null,25,null,25,75,2,-20,2]
[35,44,"2d3*10","Force du gladiateur",1,37,250,11,5,5,4,"M / T",null,"Saint protecteur",25,25,null,75,50,1,-10,1.5]
[45,54,"2d4*10","Forge des enfers",1,37,200,10,4,4,4,"M / C",null,"Sarrau d'érudit",null,null,null,25,50,1,-10,1.5]
[55,64,"2d5*10","Fouet d'attelage",2,6,150,12,8,7,6,"M / C",null,"Testament Duloir",75,75,25,50,25,4,-40,0.6]
[65,74,"2d6*10","Fouet de cocher",2,11,150,12,6,6,6,"M / C",null,"Toge de paysan",null,null,25,null,null,1,-10,1.1000000000000001]
[75,84,"3d4*10","Fouet de corde",1,5,null,12,8,7,6,"M / C",null,"Toge d'espion",null,25,25,25,25,null,null,1.3]
[85,94,"2d8*10","Fouet de l'explorateur",3,14,150,12,6,5,4,"M / C",null,"Tunique de dignitaire",25,null,null,50,50,1,-10,1.5]
[95,99,"4d4*10","Francisque",2,24,200,11,6,5,5,"M / T",null,"Tunique de ferme",null,null,null,25,null,1,-10,1.3]
[100,109,"3d6*10","Fronde",3,7,150,12,9,8,7,"T / C",null,"Tunique religieuse",null,null,25,null,50,1,-10,1.5]
[110,119,"2d10*10","Furie du barbare",1,35,250,11,5,4,3,"M / T",null,"Tunique royale",25,null,50,50,50,2,-20,1.4]
[120,129,"5d4*10","Gardien de la nature",5,24,250,10,5,4,3,"T / P",null,"Veste de cuir",25,null,null,null,null,null,null,1.2]
[130,139,"2d12*10","Gardienne",2,36,250,10,4,4,4,"M / P"]
[140,149,"4d6*10","Glaive",1,14,200,10,6,5,4,"M / T",null,"Qualité","Type","% augmentation de dégat","Portée","Critique","Face","Flanc","Dos","Physique","Champ d'action","Mouvement","Compétence","Magie"]
[150,159,"6d4*10","Glaive nordique",1,28,250,10,5,3,3,"M / T"]
[160,169,"3d10*10","Gourdin",1,10,150,9,7,6,4,"M / C",null,"Pointu","M / P",1.1000000000000001]
[170,179,"5d6*10","Grand maillet",1,15,150,10,8,8,8,"M / C",null,"Mordant","M / P",1.2]
[180,189,"4d8*10","Grande hache",1,14,150,11,8,7,6,"M / T",null,"Acéré","M / P",1.33]
[190,199,"3d12*10","Grande masse",1,14,150,10,7,7,7,"M / C",null,"Aiguisé","M / T",1.1000000000000001]
[200,209,"8d4*10","Grandius",3,27,200,11,5,4,4,"T / T",null,"Affûté","M / T",1.2]
[210,219,"6d6*10","Hache de bataille",1,12,150,11,6,6,5,"M / T",null,"Affilé","M / T",1.33]
[220,229,"4d10*10","Hache de jet",3,12,150,11,7,7,6,"T / T",null,"Alourdi","M / C",1.1000000000000001]
[230,239,"5d8*10","Hache double",1,20,200,11,6,4,4,"M / T",null,"Empesé","M / C",1.2]
[240,249,"7d6*10","Hache géante",1,22,150,11,7,5,5,"M / T",null,"Chargé","M / C",1.33]
[250,259,"10d4*10","Hache indigène",1,13,250,11,7,6,4,"M / T",null,"Stable","Tir",1.1000000000000001]
[260,269,"4d12*10","Hache Kryline",1,29,200,11,5,4,3,"M / T",null,"Juste","Tir",1.2]
[270,279,"6d8*10","Hache sauvage",3,19,200,11,6,5,5,"T / T",null,"Précis","Tir",1.33]
[280,289,"5d10*10","Hachette",1,9,150,11,7,6,6,"M / T",null,"Surdimensionné","Tir",1,1]
[290,299,"8d6*10","Hallebarde",2,17,150,11,8,6,5,"M / T",null,"Gigantesque","Tir",1,2]
[300,309,"7d8*10","Héritage de Gaïa",1,26,150,9,5,5,5,"M / C",null,"Puissant",null,1,null,50]
[310,319,"9d6*10","Hokasai",2,16,250,12,7,6,5,"M / C",null,"Dévastateur",null,1,null,100]
[320,329,"5d12*10","Honneur des Valmont",1,24,150,10,3,3,3,"M / T",null,"Balancé",null,1,null,null,null,null,1]
[330,339,"6d10*10","Javeline",5,13,200,10,7,5,5,"T / P",null,"Équilibré",null,1,null,null,null,1,1]
[340,349,"10d6*10","Javelot de bois",3,6,150,12,8,8,6,"T / P",null,"Perfectionné",null,1,null,null,1]
[350,449,"2d3*100","Javelot militaire",5,20,250,10,6,4,4,"T / P",null,"Dégradé",null,1,null,null,-1,-1,-1]
[450,549,"2d4*100","Javelot sacré",6,26,300,10,4,3,3,"T / P",null,"Faible",null,1]
[550,649,"2d5*100","Joute du juste",2,32,250,10,5,3,3,"M / P",null,"Allégé",null,1,null,null,null,null,null,-1]
[650,749,"2d6*100","Katana",1,17,250,11,5,4,3,"M / T",null,"Optimisé",null,1,null,null,null,null,null,-2]
[750,849,"3d4*100","Katana à deux mains",1,23,250,11,5,4,3,"M / T",null,"Commode",null,1,null,null,null,null,null,null,-1]
[850,949,"2d8*100","Kuk'Tah",4,21,150,11,6,5,4,"T / T",null,"Maniable",null,1,null,null,null,null,null,null,-2]
[950,999,"4d4*100","Kurosa",1,37,300,11,4,4,2,"M / T",null,"Délestée",null,1,null,null,null,null,null,null,null,-1]
[1000,1099,"3d6*100","Lame de cristal",1,24,200,10,5,4,3,"M / T",null,"Déchargée",null,1,null,null,null,null,null,null,null,-2]
[1100,1199,"2d10*100","Lame d'entraînement",1,8,150,10,8,7,6,"M / T",null,"Retouchée",null,1,null,null,null,null,null,null,null,null,10]
[1200,1299,"5d4*100","Lame du boureau",1,25,200,10,5,5,3,"M / T",null,"Améliorée",null,1,null,null,null,null,null,null,null,null,20]
[1300,1399,"2d12*100","Lance ancienne",1,17,250,10,6,4,4,"M / P",null,"Consolidée",null,1,null,null,null,null,null,null,null,-1,10]
[1400,1499,"4d6*100","Lance de bois à deux mains",2,8,150,12,9,8,6,"M / P",null,"Trempée",null,1]
[1500,1599,"6d4*100","Lance de bois à une main",1,7,150,12,9,8,6,"M / P",null,"Solidifié",null,1]
[1600,1699,"3d10*100","Lance de cavalerie lourde",2,17,250,10,7,7,5,"M / P",null,"Fortifié",null,1]
[1700,1799,"5d6*100","Lance de ville",2,11,250,10,8,7,5,"M / P",null,"Raffiné",null,1]
[1800,1899,"4d8*100","Lance d'entraînement",2,13,200,10,8,7,6,"M / P",null,"Brisé",null,0]
[1900,1999,"3d12*100","Lance militaire",1,11,250,10,7,5,5,"M / P",null,"Fragile",null,1]
[2000,2099,"8d4*100","Lance paysanne",1,8,250,10,8,7,6,"M / P",null,"Occulte",null,1,null,null,null,null,null,null,null,null,null,0.1]
[2100,2199,"6d6*100","Lance Valmont",2,26,200,10,6,4,3,"M / P",null,"Enchanté",null,1,null,null,null,null,null,null,null,null,null,0.2]
[2200,2299,"4d10*100","Légende de Jemai",1,36,150,9,4,4,4,"M / C"]
[2300,2399,"5d8*100","Long dard",4,9,200,10,7,6,6,"T / P",null,"Monture"]
[2400,2499,"7d6*100","Loup Noir",1,25,300,11,3,3,2,"M / T"]
[2500,2599,"10d4*100","Maillet de combat",1,16,150,10,6,6,6,"M / C",null,"Âne",20,4,1,3,4]
[2300,2699,"4d12*100","Marche des templiers",2,24,350,12,5,4,3,"M / C",null,"Bœuf",70,7,1,2,3]
[2700,2799,"6d8*100","Marteau civil",1,10,150,10,7,7,7,"M / C",null,"Cheval de trait",70,7,2,4,6]
[2800,2899,"5d10*100","Marteau de guerre",1,21,150,10,5,5,5,"M / C",null,"Chien du nord",15,3,2,5,6]
[2900,2999,"8d6*100","Marteau géant",1,23,200,10,7,7,7,"M / C",null,"Coursier",50,4,2,7,10]
[3000,3099,"7d8*100","Martinet",1,9,200,12,7,6,5,"M / C",null,"Coursier impérial",150,6,2,8,12]
[3100,3199,"9d6*100","Masse colossale",1,28,150,10,6,6,6,"M / C",null,"Destrier",160,7,3,5,7]
[3200,3299,"5d12*100","Masse d'armes",1,18,200,10,6,6,6,"M / C",null,"Destrier impérial",240,7,3,7,9]
[3300,3399,"6d10*100","Masse de construction",1,19,150,10,7,7,7,"M / C",null,"Étalon",40,4,2,6,8]
[3400,3499,"10d6*100","Masse Duloir",1,26,200,10,5,5,5,"M / C",null,"Léopard / Panthère",30,3,2,6,7]
[null,null,null,"Masse Gerrol",1,44,150,10,5,5,5,"M / C",null,"Lignée Sainte",320,8,4,7,10]
[null,null,null,"Matraque impériale",1,19,150,9,5,4,3,"M / C",null,"Lion",100,6,4,6,7]
[null,null,null,"Mousquet",5,20,200,12,7,6,6,"T / F",null,"Mulet",40,5,1,5,5]
[null,null,null,"Mousquet Savie",6,42,200,12,5,5,4,"T / F",null,"Premier coursier",90,5,2,8,11]
[null,null,null,"Mousqueton",4,14,200,12,8,7,6,"T / F",null,"Pur-sang",100,6,2,6,8]
[null,null,null,"Mousqueton royal",4,38,200,12,5,4,4,"T / F",null,"Tigre",60,5,3,7,8]
[null,null,null,"Murasame",1,27,300,11,5,3,3,"M / T"]
[null,null,null,"Nohagan",4,31,200,11,5,4,3,"T / T",null,"Carapaçons / Bardes"]
[null,null,null,"Pacificateur",4,33,200,12,5,5,4,"T / F"]
[null,null,null,"Perche des trois couches",2,24,150,9,5,3,3,"M / C",null,"Barde barbares",null,25,null,25]
[null,null,null,"Pertuisane",2,25,250,10,6,4,4,"M / P",null,"Barde de conquête",50,50,50,25]
[null,null,null,"Petite canne",1,7,150,9,8,7,6,"M / C",null,"Barde de plate",50,50,25]
[null,null,null,"Pilum",1,14,300,10,6,5,5,"M / P",null,"Carapaçon d'Alenson",25,25,25,25,50]
[null,null,null,"Pique",2,14,250,10,7,6,5,"M / P",null,"Carapaçon de cuir",null,25,25,null,25]
[null,null,null,"Pistolet de duelliste",4,27,200,12,5,5,5,"T / F",null,"Carapaçon de maille",25,25,25]
[null,null,null,"Plomb nordique",1,35,200,10,6,6,6,"M / C",null,"Chanfrein de tissu",null,null,25]
[null,null,null,"Pluie des ténèbres",7,25,300,10,4,3,3,"T / P",null,"Honneur des croisés",25,25,25,25]
[null,null,null,"Poignard",4,10,200,9,7,6,4,"T / P",null,"Housse de maille",25,null,25]
[null,null,null,"Pointe de l'aigle",6,21,300,10,5,4,4,"T / P",null,"Housse de plate",25,50,25]
[null,null,null,"Pourfendeuse",1,16,200,11,6,5,4,"M / T",null,"Housse de tissu",null,null,null,25]
[null,null,null,"Premier phalange",1,26,250,10,4,4,2,"M / P",null,"Housse en peau animale",null,25,null,null,25]
[null,null,null,"Protectrice",2,31,300,10,6,4,3,"M / P",null,"Lussa Judicium",50,75,50,25]
[null,null,null,"Rapière",1,9,200,10,7,5,5,"M / T",null,"Marche des chevaliers",25,50,25,25,25]
[null,null,null,"Rifle",6,27,200,12,6,6,5,"T / F",null,"Ornement royal",25,25,25,50,50]
[null,null,null,"Roi cobra",5,null,null,10,4,3,2,"T / P",null,"Parure noble",null,25,25,50,25]
[null,null,null,"Royal Logia",1,30,300,10,4,3,2,"M / P"]
[null,null,null,"Sabre barbare",1,12,200,11,7,6,5,"M / T"]
[null,null,null,"Sabre commodore",1,21,250,11,4,3,3,"M / T"]
[null,null,null,"Sabre de bois",1,6,null,12,8,8,6,"M / T"]
[null,null,null,"Sabre de pirate",1,13,250,11,7,6,5,"M / T"]
[null,null,null,"Sabre Estara",1,20,200,11,6,6,4,"M / T"]
[null,null,null,"Sabre roi orque",1,34,350,11,5,5,4,"M / T"]
[null,null,null,"Sadisme de l'Apocaal",2,22,250,12,5,3,3,"M / C"]
[null,null,null,"Sagesse du Créateur",1,30,150,9,5,5,5,"M / C"]
[null,null,null,"Sangdragon",1,44,250,10,4,3,3,"M / T"]
[null,null,null,"Sarbacane de bambou",4,null,null,10,6,5,4,"T / P"]
[null,null,null,"Sarbacane improvisée",2,null,null,12,9,8,7,"T / P"]
[null,null,null,"Sarbacane primitive",3,null,null,10,7,6,5,"T / P"]
[null,null,null,"Sceptre de combat Oys",1,27,150,9,4,3,2,"M / C"]
[null,null,null,"Souhait d'Odilia",1,21,150,10,4,4,3,"M / T"]
[null,null,null,"Succube",2,19,200,12,5,4,3,"M / C"]
[null,null,null,"Tabrage",1,55,200,10,5,5,5,"M / C"]
[null,null,null,"Tanto",1,7,150,11,6,5,4,"M / T"]
[null,null,null,"Tomahawk",3,15,200,11,7,5,5,"T / T"]
[null,null,null,"Tonnerre bleu",8,35,350,10,4,3,3,"T / P"]
[null,null,null,"Tortionnaire",1,23,350,12,6,4,4,"M / C"]
[null,null,null,"Trident",2,20,300,10,7,5,4,"M / P"]
[null,null,null,"Tromblon ancien",5,16,200,12,8,7,6,"T / F"]
[null,null,null,"Tromblon moderne",4,18,200,12,7,6,6,"T / F"]
[null,null,null,"Tube de la jungle",4,null,null,10,7,6,4,"T / P"]
[null,null,null,"Tueuse de démon",12,30,250,11,4,3,2,"T / P"]
[null,null,null,"Tueuse de dragon",2,39,300,10,4,4,3,"M / P"]
[null,null,null,"Tueuse de géant",1,31,200,11,6,5,4,"M / T"]
[null,null,null,"Tueuse de monarque",4,null,null,10,4,4,3,"T / P"]
[null,null,null,"Tueuse de rois",5,24,250,9,4,3,2,"T / P"]
[null,null,null,"Vadia",1,30,200,10,5,5,4,"M / T"]
[null,null,null,"Vent du nord",5,20,200,9,4,4,3,"T / P"]
[null,null,null,"Vœu du Preux",1,18,150,10,5,4,4,"M / T"]
[null,null,null,"Wakazashi",1,14,200,11,6,5,3,"M / T"]
[null,null,null,"Zantesiu",1,30,300,11,3,2,2,"M / T"]
[null,null,null,"Zouave Balgarde",1,22,300,10,5,4,3,"M / P"]